bitfinex/quotes_ETHUSD_20250730
["timestamp","ask_amount","ask_price","bid_price","bid_amount"]
[1753885696072,0.002,3784.6,3784.2,0.5726]
[1753885696394,0.002,3784.6,3784.4,0.512]
[1753885696596,0.4542,3784.6,3784.2,0.132]
[1753885696906,0.5141,3784.6,3784.2,0.132]
[1753885697110,0.4522,3784.5,3784.2,0.132]
[1753885697501,0.002,3784.6,3784.2,0.132]
[1753885698105,0.4542,3784.6,3784.2,0.132]
[1753885698988,0.002,3784.6,3784.2,0.6253]
[1753885699187,0.002,3784.6,3784.3,0.9647]
[1753885699413,0.002,3784.6,3784.3,0.4933]
[1753885700727,0.002,3784.6,3784.2,0.132]
[1753885700930,0.4542,3784.6,3784.2,0.132]
[1753885701079,0.002,3784.6,3784.2,0.132]
[1753885701705,0.4522,3784.5,3783.8,0.7807]
[1753885701915,1.3551,3784.5,3783.9,0.132]
[1753885702550,0.002,3784.6,3784.2,0.132]
[1753885703008,0.002,3784.6,3784.3,0.9647]
[1753885703510,0.002,3784.6,3784.2,0.132]
[1753885703713,0.002,3784.6,3784.3,0.4933]
[1753885704402,0.002,3784.6,3784.2,0.132]
[1753885705315,1.2508,3784.5,3783.4,0.8267]
[1753885705481,0.132,3783.9,3783.4,0.9587]
[1753885706007,0.132,3783.9,3783.4,1.452]
[1753885706674,0.132,3783.9,3783.5,0.4933]
[1753885706876,0.132,3783.9,3783.6,0.4933]
[1753885707077,1.2508,3784.5,3783.6,0.4933]
[1753885707078,0.132,3784.5,3783.8,0.132]
[1753885707307,0.5121,3784.5,3783.8,0.132]
[1753885707524,0.132,3784.1,3783.6,0.132]
[1753885707731,0.4522,3784.0,3783.6,0.132]
[1753885707939,0.9643,3784.0,3783.6,0.132]
[1753885708283,0.132,3784.1,3783.6,0.95191946]
[1753885708535,0.002,3784.6,3783.8,2.64284581]
[1753885708864,0.002,3784.6,3784.0,2.77470211]
[1753885709386,0.002,3784.6,3784.1,0.4933]
[1753885709782,0.002,3784.6,3784.0,2.77470211]
[1753885710171,0.002,3784.6,3784.2,3.60725385]
[1753885710279,0.002,3784.6,3784.4,0.132]
[1753885711131,0.002,3784.6,3784.5,0.9647]
[1753885711300,0.002,3784.6,3784.5,3.60705698]
[1753885711495,0.002,3784.6,3784.5,0.9647]
[1753885711729,0.002,3784.6,3784.5,1.41575533]
[1753885711946,0.002,3784.6,3784.5,0.45105533]
[1753885712138,0.002,3784.6,3784.4,0.132]
[1753885712486,0.002,3784.6,3784.4,0.6253]
[1753885713024,0.002,3784.6,3784.5,3.60705698]
[1753885713223,0.002,3784.6,3784.5,3.63348054]
[1753885713535,0.002,3784.6,3784.5,5.54527899]
[1753885715000,0.002,3784.6,3784.5,6.53452201]
[1753885715383,0.002,3784.6,3784.2,7.9164]
[1753885715625,0.002,3784.6,3784.3,0.132]
[1753885716133,0.002,3784.6,3784.2,0.132]
[1753885716331,0.9663,3784.6,3784.2,0.132]
[1753885716520,0.9663,3784.6,3784.1,0.001]
[1753885716521,1.12272932,3784.5,3784.1,0.001]
[1753885716712,0.132,3784.3,3784.1,0.001]
[1753885717034,0.31805,3784.3,3784.1,0.001]
[1753885717391,0.9643,3784.2,3784.1,0.001]
[1753885721164,0.4522,3784.2,3784.1,0.001]
[1753885721310,8.46206646,3784.2,3784.1,0.001]
[1753885722925,8.66525293,3784.2,3784.1,0.001]
[1753885723123,42.21525293,3784.2,3784.1,0.001]
[1753885723420,42.56892879,3784.2,3784.1,1e-08]
[1753885723626,42.71755551,3784.2,3784.1,1e-08]
[1753885725933,38.6144048,3784.2,3784.1,1e-08]
[1753885726140,42.32121793,3784.2,3784.1,1e-08]
[1753885726547,42.71725766,3784.2,3784.1,1e-08]
[1753885726745,5.4216912,3784.2,3784.1,1e-08]
[1753885726951,10.70095293,3784.2,3784.1,1e-08]
[1753885727129,11.64765293,3784.2,3784.1,1e-08]
[1753885727473,11.89512515,3784.2,3784.1,1e-08]
[1753885728270,11.40032515,3784.2,3784.1,1e-08]
[1753885728436,11.89512515,3784.2,3784.1,1e-08]
[1753885728623,12.04358706,3784.2,3784.1,1e-08]
[1753885728821,12.04355493,3784.2,3784.1,1e-08]
[1753885729042,12.04355696,3784.2,3784.1,1e-08]
[1753885729353,10.94839302,3784.2,3784.1,1e-08]
[1753885729557,42.5935345,3784.2,3784.1,1e-08]
[1753885731833,42.59338829,3784.2,3784.1,1e-08]
[1753885732354,42.84069017,3784.2,3784.1,1e-08]
[1753885732518,43.15588855,3784.2,3784.1,1e-08]
[1753885733239,42.84069017,3784.2,3784.1,1e-08]
[1753885733754,36.99567597,3783.9,3783.8,1e-08]
[1753885733919,41.74171321,3783.9,3783.8,1e-08]
[1753885734120,42.82041321,3783.9,3783.8,1e-08]
[1753885735539,42.57311133,3783.9,3783.8,1e-08]
[1753885735756,42.82010777,3783.9,3783.8,1e-08]
[1753885736475,42.92608677,3783.9,3783.8,1e-08]
[1753885737833,12.92608677,3783.9,3783.8,1e-08]
[1753885738037,42.92608677,3783.9,3783.8,1e-08]
[1753885740330,6.19284581,3783.8,3783.7,1e-08]
[1753885740650,36.97097458,3782.9,3782.8,1e-08]
[1753885740849,41.76846684,3782.9,3782.8,1e-08]
[1753885741054,12.86314291,3782.9,3782.8,1e-08]
[1753885741267,43.3102507,3782.9,3782.8,1e-08]
[1753885741474,42.96915091,3782.9,3782.8,1e-08]
[1753885741760,42.65395253,3782.9,3782.8,1e-08]
[1753885742268,42.52195253,3782.9,3782.8,1e-08]
[1753885742684,45.30795253,3782.9,3782.8,1e-08]
[1753885743631,45.30782596,3782.9,3782.8,1e-08]
[1753885743966,45.96412413,3782.9,3782.8,1e-08]
[1753885744270,45.7612049,3782.9,3782.8,1e-08]
[1753885744455,45.44600652,3782.9,3782.8,1e-08]
[1753885744869,41.34300652,3782.9,3782.8,1e-08]
[1753885745071,40.29820652,3782.9,3782.8,1e-08]
[1753885745234,144.40120652,3782.9,3782.8,1e-08]
[1753885745433,145.44600652,3782.9,3782.8,1e-08]
[1753885746035,145.7612049,3782.9,3782.8,1e-08]
[1753885746729,146.10230469,3782.9,3782.8,1e-08]
[1753885746933,145.7612049,3782.9,3782.8,1e-08]
[1753885748304,115.7612049,3782.9,3782.1,1e-08]
[1753885748461,39.78456383,3782.2,3782.1,1e-08]
[1753885748656,50.24456383,3782.2,3782.1,1e-08]
[1753885748970,51.19126383,3782.2,3782.1,1e-08]
[1753885749186,50.69646383,3782.2,3782.1,1e-08]
[1753885749390,47.45856383,3782.2,3782.1,0.47690001]
[1753885749911,47.70500763,3782.2,3782.1,1e-08]
[1753885750210,47.45856383,3782.2,3782.1,1e-08]
[1753885750409,47.70500394,3782.2,3782.1,1e-08]
[1753885750587,47.8348361,3782.2,3782.1,1e-08]
[1753885750903,48.3117361,3782.2,3782.1,1e-08]
[1753885751312,48.45959908,3782.2,3782.1,1e-08]
[1753885751791,48.45959908,3782.2,3782.1,0.94730001]
[1753885751792,47.16013043,3782.2,3782.1,0.94730001]
[1753885752094,46.98679032,3782.2,3782.1,0.94730001]
[1753885752292,47.11879032,3782.2,3782.1,0.94730001]
[1753885752687,47.11879032,3782.2,3782.1,1e-08]
[1753885752992,47.51313144,3782.2,3782.1,1e-08]
[1753885755727,52.00223144,3782.2,3782.1,1e-08]
[1753885755894,51.50743144,3782.2,3782.1,1e-08]
[1753885756096,51.05553144,3782.2,3782.1,0.00100001]
[1753885756324,44.16553144,3782.2,3782.1,0.94830001]
[1753885756523,46.96213144,3782.2,3782.1,0.94830001]
[1753885756890,47.51213144,3782.2,3782.1,0.94830001]
[1753885757223,43.40913144,3782.2,3782.1,0.94830001]
[1753885757520,46.83329928,3782.2,3782.1,0.94830001]
[1753885757739,47.38329928,3782.2,3782.1,0.94830001]
[1753885757943,17.38329928,3782.2,3782.1,0.94830001]
[1753885758516,6.88234112,3782.2,3782.1,0.94830001]
[1753885758695,6.88234112,3782.2,3782.1,1.72150001]
[1753885758696,10.98634112,3782.2,3782.1,1.72150001]
[1753885759078,13.63030495,3782.2,3782.1,1.72150001]
[1753885759243,16.87706076,3782.2,3782.1,1.72150001]
[1753885759540,17.42706076,3782.2,3782.1,1.72150001]
[1753885759902,17.42747513,3782.2,3782.1,1.72150001]
[1753885760837,17.42747513,3782.2,3782.1,0.94830001]
[1753885760838,47.42747513,3782.2,3782.1,0.94830001]
[1753885761136,47.62258238,3782.2,3782.1,0.94830001]
[1753885761508,47.62284523,3782.2,3782.1,0.94830001]
[1753885761719,47.62284523,3782.2,3782.1,0.00100001]
[1753885763250,47.62322504,3782.2,3782.1,0.00100001]
[1753885763810,43.51922504,3782.2,3782.1,0.92930001]
[1753885764010,17.62222504,3782.2,3782.1,0.92930001]
[1753885764212,10.13015396,3782.2,3782.1,1.72630001]
[1753885764443,16.87741319,3782.2,3782.1,1.25850001]
[1753885764624,47.42741319,3782.2,3782.1,0.00100001]
[1753885766147,47.62128898,3782.2,3782.1,0.00100001]
[1753885766565,17.62128898,3782.2,3782.1,0.00100001]
[1753885766778,47.62128898,3782.2,3782.1,0.00100001]
[1753885767575,47.62128898,3782.2,3782.1,0.92930001]
[1753885767924,47.62128898,3782.2,3782.1,0.46150001]
[1753885768593,10.32432515,3782.2,3782.1,1.69800001]
[1753885768811,7.13044936,3782.2,3782.1,1.69800001]
[1753885769078,13.87641319,3782.2,3782.1,0.92930001]
[1753885769287,13.74441319,3782.2,3782.1,1.69800001]
[1753885769489,13.49814837,3782.2,3782.1,1.69800001]
[1753885769855,16.49814837,3782.2,3782.1,0.46150001]
[1753885770184,16.10196383,3782.2,3782.1,0.46150001]
[1753885770479,16.34958416,3782.2,3782.1,0.00100001]
[1753885770684,46.10196383,3782.2,3782.1,0.00100001]
[1753885770889,47.29590331,3782.2,3782.1,0.00100001]
[1753885771088,47.29590331,3782.2,3782.1,0.46150001]
[1753885771089,17.29590331,3782.2,3782.1,0.46150001]
[1753885771286,12.64390331,3782.2,3782.1,0.92930001]
[1753885771591,16.74590688,3782.2,3782.1,0.92930001]
[1753885771796,11.10194305,3782.2,3782.1,1.71050001]
[1753885772809,11.10194305,3782.2,3782.1,1.88155001]
[1753885773364,11.10194305,3782.2,3782.1,1.71050001]
[1753885774345,10.70566903,3782.2,3782.1,1.71050001]
[1753885774543,11.10204424,3782.2,3782.1,1.71050001]
[1753885776187,13.74600807,3782.2,3782.1,0.00100001]
[1753885776996,13.74600807,3782.2,3782.1,0.46150001]
[1753885778095,13.74600807,3782.2,3782.1,0.00100001]
[1753885778592,13.74600807,3782.2,3782.1,0.92930001]
[1753885778593,11.10104424,3782.2,3782.1,0.92930001]
[1753885778783,11.10304424,3782.2,3782.1,0.46150001]
[1753885779096,11.23504424,3782.2,3782.1,0.92930001]
[1753885779275,13.87900807,3782.2,3782.1,0.92930001]
[1753885779598,49.77130888,3782.2,3782.1,0.00100001]
[1753885781288,49.77189707,3782.2,3782.1,0.00100001]
[1753885783185,18.81749707,3782.2,3782.1,0.00100001]
[1753885783875,18.81748107,3782.2,3782.1,0.00100001]
[1753885784073,48.81748107,3782.2,3782.1,0.00100001]
[1753885784978,49.77188107,3782.2,3782.1,0.00100001]
[1753885785166,19.77188107,3782.2,3782.1,0.00100001]
[1753885785379,49.77188107,3782.2,3782.1,0.00100001]
[1753885785767,49.77187352,3782.2,3782.1,0.00100001]
[1753885786160,19.77187352,3782.2,3782.1,0.00100001]
[1753885786698,19.7718662,3782.2,3782.1,0.00100001]
[1753885786874,49.8778872,3782.2,3782.1,0.00100001]
[1753885787581,19.8778872,3782.2,3782.1,0.00100001]
[1753885787781,49.8778872,3782.2,3782.1,0.00100001]
[1753885788771,48.9234872,3782.2,3782.1,0.00100001]
[1753885789180,18.9234872,3782.2,3782.1,0.00100001]
[1753885789971,19.3684872,3782.2,3782.1,0.00100001]
[1753885790565,14.8224872,3782.2,3782.1,0.00100001]
[1753885790766,18.9234872,3782.2,3782.1,0.00100001]
[1753885791202,19.8460872,3782.2,3782.1,0.00100001]
[1753885791703,49.3684872,3782.2,3782.1,0.00100001]
[1753885791879,48.9234872,3782.2,3782.1,0.00100001]
[1753885792505,14.8224872,3782.2,3782.1,0.00100001]
[1753885792686,14.8224872,3782.2,3782.1,0.92090001]
[1753885792687,43.87956539,3782.2,3782.1,0.92090001]
[1753885792915,13.87956539,3782.2,3782.1,0.92090001]
[1753885793293,16.87956539,3782.2,3782.1,0.92090001]
[1753885793666,10.13460156,3782.2,3782.1,0.92090001]
[1753885793863,16.87956539,3782.2,3782.1,0.92090001]
[1753885794062,17.42956539,3782.2,3782.1,0.00100001]
[1753885794309,18.35216539,3782.2,3782.1,0.00100001]
[1753885794869,21.13816539,3782.2,3782.1,0.00100001]
[1753885795070,20.21556539,3782.2,3782.1,0.00100001]
[1753885795503,21.13816266,3782.2,3782.1,0.00100001]
[1753885795877,20.21556266,3782.2,3782.1,0.00100001]
[1753885796605,20.66056266,3782.2,3782.1,0.00100001]
[1753885796810,21.13816266,3782.2,3782.1,0.00100001]
[1753885797883,21.62176266,3782.2,3782.1,0.00100001]
[1753885798610,21.14416655,3782.2,3782.1,0.00100001]
[1753885798815,20.69916655,3782.2,3782.1,0.00100001]
[1753885799111,50.69916655,3782.2,3782.1,0.00100001]
[1753885800018,20.69916655,3782.2,3782.1,0.00100001]
[1753885800188,47.91316655,3782.2,3782.1,0.00100001]
[1753885800522,13.26216655,3782.2,3782.1,0.00100001]
[1753885800833,16.87856655,3782.2,3782.1,0.92090001]
[1753885800977,0.77860272,3782.2,3782.1,0.92090001]
[1753885801183,0.77860272,3782.2,3782.1,1.86353001]
[1753885801378,4.87860272,3782.2,3782.1,1.86353001]
[1753885802277,4.87860272,3782.2,3782.1,1.69500001]
[1753885803717,0.77860272,3782.2,3782.1,1.69500001]
[1753885803901,4.87854407,3782.2,3782.1,1.69500001]
[1753885804621,4.87854407,3782.2,3782.1,4.47103374]
[1753885804622,0.39867928,3782.2,3782.1,4.47103374]
[1753885804774,0.002,3782.6,3782.5,2.64375413]
[1753885804996,7.1585,3784.3,3783.2,3.45866496]
[1753885804997,0.24780157,3783.3,3783.2,3.45866496]
[1753885805226,4.099,3783.7,3783.2,1.8673]
[1753885805514,4.099,3783.7,3783.3,0.94633195]
[1753885805721,4.099,3783.7,3783.4,0.7528]
[1753885805927,4.099,3783.7,3783.3,0.7528]
[1753885806133,4.099,3783.7,3783.6,0.7787]
[1753885806335,4.231,3783.7,3783.6,0.7787]
[1753885806542,4.231,3783.7,3783.6,1.2613]
[1753885807034,4.231,3783.7,3783.6,0.7787]
[1753885807594,4.231,3783.7,3783.6,1.2613]
[1753885808212,4.23,3783.7,3783.6,1.6986]
[1753885808432,4.23,3783.7,3783.6,1.86846]
[1753885808433,4.098,3783.7,3783.6,1.86846]
[1753885809283,4.098,3783.7,3783.6,1.2613]
[1753885809490,4.23,3783.7,3783.6,1.2613]
[1753885810226,4.23,3783.7,3782.9,0.132]
[1753885810227,6.87291566,3783.7,3783.3,0.8223]
[1753885810519,4.098,3783.7,3783.4,0.4826]
[1753885810729,0.002,3783.9,3783.8,3.41764581]
[1753885810889,0.002,3784.3,3784.2,2.64256646]
[1753885811086,0.002,3784.3,3784.2,0.9068]
[1753885811289,0.002,3784.3,3784.2,1.8267]
[1753885811487,0.002,3784.3,3784.2,0.7748]
[1753885811713,4.099,3784.3,3784.2,0.7748]
[1753885811923,4.8091,3784.3,3784.2,0.7748]
[1753885812126,4.8091,3784.3,3783.8,1.2752]
[1753885812435,4.099,3784.3,3783.9,0.4826]
[1753885812633,4.097,3784.2,3783.9,0.4826]
[1753885812834,4.097,3784.2,3784.0,0.4826]
[1753885813238,4.097,3784.2,3783.8,0.7926]
[1753885813442,4.097,3784.2,3783.9,0.4826]
[1753885813806,4.097,3784.2,3784.0,0.4826]
[1753885814560,4.097,3784.2,3783.8,0.7926]
[1753885814727,4.5069,3784.2,3783.6,0.4826]
[1753885815046,0.445,3784.1,3783.5,0.7937]
[1753885815254,3.08764176,3784.1,3783.5,0.7937]
[1753885815427,0.445,3784.1,3783.5,0.7937]
[1753885815627,4.097,3784.2,3783.5,1.2763]
[1753885816849,0.2467649,3784.1,3783.5,1.2763]
[1753885817146,0.24676379,3784.0,3783.5,1.2763]
[1753885817346,4.3437649,3783.9,3783.6,0.4637]
[1753885817530,0.49352869,3783.8,3783.6,0.4637]
[1753885817728,0.2467649,3783.7,3783.6,0.4637]
[1753885818179,30.927923,3783.7,3782.6,0.8133]
[1753885818335,3.0,3783.4,3782.6,0.8133]
[1753885818526,4.44247583,3783.6,3782.6,0.8133]
[1753885818527,4.61597583,3783.3,3782.6,0.8133]
[1753885818858,3.13686463,3783.2,3782.6,0.8133]
[1753885819020,0.2467649,3783.1,3782.6,0.8133]
[1753885819215,4.096,3783.0,3782.7,0.4637]
[1753885819421,4.3427649,3782.9,3782.8,0.4637]
[1753885819631,4.096,3782.9,3782.8,0.63551]
[1753885819860,4.34282529,3782.9,3782.6,0.8133]
[1753885820059,0.24682529,3782.8,3782.6,0.8133]
[1753885820966,0.24682529,3782.8,3782.7,0.4637]
[1753885821170,0.24682529,3782.8,3782.7,0.9048]
[1753885821171,4.34382529,3782.8,3782.7,0.9048]
[1753885821408,4.34382529,3782.8,3782.7,0.63551]
[1753885821534,4.47582529,3782.8,3782.6,0.8133]
[1753885821835,4.229,3782.8,3782.6,0.8133]
[1753885822226,0.13814669,3784.0,3782.7,0.9048]
[1753885822430,0.132,3783.1,3782.8,1.2366]
[1753885822738,4.096,3783.0,3782.9,0.9048]
[1753885822927,0.24688581,3783.0,3782.9,3.54827458]
[1753885823123,0.132,3783.5,3783.1,3.45313473]
[1753885823327,4.097,3783.4,3783.1,0.8098]
[1753885823571,0.24685554,3783.3,3783.2,1.26596151]
[1753885823878,0.24685554,3783.3,3783.2,0.36116151]
[1753885824460,0.24685554,3783.3,3783.2,2.16826151]
[1753885824973,4.096,3783.5,3783.2,2.16826151]
[1753885824974,0.24685554,3783.4,3783.2,2.16826151]
[1753885825145,0.24685554,3783.3,3783.2,1.26346151]
[1753885825343,0.24686194,3783.4,3783.3,0.4637]
[1753885825647,0.132,3783.3,3782.9,0.7848]
[1753885825966,0.83196443,3783.3,3782.9,0.7848]
[1753885826144,0.132,3783.0,3782.9,0.7848]
[1753885826476,4.228,3783.0,3782.9,0.7848]
[1753885826645,4.47486443,3783.0,3782.9,0.7848]
[1753885827261,4.47486443,3783.0,3782.6,1.2821]
[1753885827469,0.132,3782.7,3782.6,1.2821]
[1753885827973,0.132,3782.7,3782.6,0.8184]
[1753885829362,0.132,3782.7,3782.6,1.2821]
[1753885830746,4.096,3782.7,3782.6,1.7232]
[1753885831062,4.096,3782.7,3782.6,1.89562]
[1753885831374,4.096,3782.7,3782.6,1.45452]
[1753885831879,4.096,3782.7,3782.6,0.8184]
[1753885832084,4.228,3782.7,3782.6,0.8184]
[1753885832786,4.228,3782.7,3782.6,0.001]
[1753885832971,4.6811,3782.7,3782.6,0.001]
[1753885833366,4.228,3782.7,3782.6,0.001]
[1753885834147,4.228,3782.7,3782.6,0.4647]
[1753885835485,4.6811,3782.7,3782.6,0.001]
[1753885835799,11.90004225,3782.7,3782.6,0.001]
[1753885836005,11.87361293,3782.7,3782.6,0.001]
[1753885837005,12.42361293,3782.7,3782.6,0.001]
[1753885838396,7.77761293,3782.7,3782.6,0.001]
[1753885838573,11.87361293,3782.7,3782.6,0.001]
[1753885838778,6.22871434,3782.7,3782.6,0.001]
[1753885838991,3.132,3782.7,3782.6,0.001]
[1753885839169,7.228,3782.7,3782.6,0.001]
[1753885840102,10.79411434,3782.7,3782.6,0.001]
[1753885840272,10.32471434,3782.7,3782.6,0.001]
[1753885840479,7.6811,3782.7,3782.6,0.001]
[1753885840807,3.132,3782.7,3782.6,0.001]
[1753885841012,0.132,3782.7,3782.6,0.4647]
[1753885841173,1.2436,3783.7,3782.6,0.9058]
[1753885841377,0.24752759,3783.6,3782.7,2.11044136]
[1753885841579,6.49215526,3784.1,3783.3,0.8216]
[1753885841781,4.47550404,3784.0,3783.5,0.9536]
[1753885842004,0.24750404,3783.9,3783.6,0.02642985]
[1753885842200,0.24750404,3783.9,3783.7,0.4637]
[1753885842377,0.24750404,3783.9,3783.7,0.60543]
[1753885842906,0.24750404,3783.9,3783.8,0.9048]
[1753885843122,4.096,3783.9,3783.8,1.6878]
[1753885844112,0.134,3784.2,3783.8,1.6878]
[1753885844266,0.002,3784.2,3784.0,0.822]
[1753885844480,0.002,3784.2,3784.1,1.0368]
[1753885845445,0.134,3784.2,3784.1,0.4637]
[1753885845718,0.002,3784.2,3784.1,0.9048]
[1753885845918,0.002,3784.2,3784.1,5.08569472]
[1753885846321,0.002,3784.2,3784.1,5.05926836]
[1753885847830,0.002,3784.2,3784.1,8.63569472]
[1753885848122,0.002,3784.2,3784.1,8.60926836]
[1753885850617,1e-08,3784.7,3784.2,6.19256646]
[1753885850822,0.04,3785.9,3784.9,0.7679]
[1753885851176,0.04,3785.9,3785.8,6.54134962]
[1753885851525,0.04,3785.9,3785.8,7.46454962]
[1753885853422,0.04,3785.9,3785.8,6.99844962]
[1753885853737,0.04,3785.9,3785.8,7.46454962]
[1753885853930,0.04,3785.9,3785.8,8.88456349]
[1753885854365,0.002,3786.4,3785.8,8.88456349]
[1753885854366,0.2462285,3786.1,3786.0,1.3818]
[1753885854564,0.002,3786.4,3786.3,0.8318]
[1753885854867,0.002,3786.4,3786.3,10.56590081]
[1753885855027,0.002,3786.4,3786.3,11.97892962]
[1753885855226,0.002,3786.4,3786.3,12.90212962]
[1753885856070,0.002,3786.4,3786.3,12.84752962]
[1753885856295,0.002,3786.4,3786.3,8.28942962]
[1753885856566,0.002,3786.4,3786.3,12.38142962]
[1753885857760,0.002,3786.4,3786.3,12.84752962]
[1753885858738,0.002,3786.4,3786.3,13.39752962]
[1753885861247,1e-08,3786.4,3786.3,13.39752962]
[1753885861585,0.002,3786.8,3786.7,7.02152182]
[1753885861793,0.002,3786.8,3786.7,18.00785615]
[1753885861977,0.002,3786.8,3786.7,18.93105615]
[1753885862851,0.002,3786.8,3786.7,8.74487711]
[1753885863068,0.002,3786.8,3786.7,12.75197711]
[1753885863282,0.002,3786.8,3786.7,13.30197711]
[1753885863486,0.002,3786.8,3786.7,18.93005615]
[1753885864267,0.002,3786.8,3786.7,13.43397711]
[1753885864893,0.002,3786.8,3786.7,12.41787711]
[1753885865090,0.002,3786.8,3786.7,11.96077711]
[1753885866201,0.002,3786.8,3786.7,12.41787711]
[1753885868915,0.002,3786.8,3786.7,8.32687711]
[1753885869102,0.002,3786.8,3786.7,12.41687711]
[1753885871615,0.002,3786.8,3786.7,7.86977711]
[1753885871770,0.002,3786.8,3786.7,11.95977711]
[1753885872599,0.002,3786.8,3786.7,12.41687711]
[1753885872799,0.002,3786.8,3786.7,8.32687711]
[1753885873097,0.002,3786.8,3786.7,12.41687711]
[1753885873504,0.002,3786.8,3786.7,7.86977711]
[1753885873705,0.4604,3786.8,3786.7,10.69352182]
[1753885874880,0.4604,3786.8,3786.7,3.132]
[1753885875084,0.9562,3786.8,3786.7,7.222]
[1753885875288,0.4604,3786.8,3786.7,9.86282182]
[1753885875491,0.002,3786.8,3786.7,7.02319418]
[1753885875811,0.002,3786.8,3786.7,11.11319418]
[1753885877908,0.4542,3786.8,3786.7,3.132]
[1753885878095,1.6896,3786.8,3786.6,4.09]
[1753885878296,1.6896,3786.8,3785.5,0.7754]
[1753885878297,0.9203,3786.7,3785.5,0.7754]
[1753885878615,0.9203,3786.7,3784.9,2.64202023]
[1753885878616,0.132,3786.2,3785.3,4.09]
[1753885878818,0.8247,3786.1,3785.4,0.132]
[1753885879123,0.132,3785.8,3785.3,0.132]
[1753885879423,0.9203,3785.7,3785.3,0.132]
[1753885879569,0.132,3785.8,3785.3,0.132]
[1753885879775,0.9203,3785.6,3785.3,0.132]
[1753885880021,0.132,3785.8,3785.3,0.132]
[1753885880322,0.9203,3785.5,3785.3,0.132]
[1753885880622,0.9203,3785.4,3785.3,0.132]
[1753885882518,0.4522,3785.4,3785.3,0.132]
[1753885883537,0.132,3785.8,3785.3,0.132]
[1753885883824,0.4522,3785.4,3785.3,0.132]
[1753885884131,0.9203,3785.4,3785.3,0.132]
[1753885886007,0.4522,3785.4,3785.3,0.132]
[1753885886221,0.9203,3785.4,3785.3,0.132]
[1753885887073,1.7203,3785.4,3784.0,0.8244]
[1753885887212,2.64109719,3786.4,3784.0,0.8244]
[1753885887213,0.132,3785.1,3784.5,0.132]
[1753885887527,0.9203,3785.0,3784.5,0.132]
[1753885887905,0.8,3784.8,3784.1,0.04]
[1753885888239,0.132,3784.4,3784.1,0.04]
[1753885888790,0.9203,3784.3,3784.1,0.04]
[1753885889109,0.4522,3784.2,3784.1,0.04]
[1753885889425,0.8,3784.8,3784.1,0.04]
[1753885889710,0.4522,3784.4,3784.1,0.172]
[1753885890243,0.4522,3784.4,3784.1,0.45357628]
[1753885890526,0.4522,3784.4,3784.1,3.09619194]
[1753885890677,0.132,3784.6,3784.1,0.45357628]
[1753885890884,0.4522,3784.6,3784.3,0.132]
[1753885891393,0.4522,3784.6,3784.3,2.77449182]
[1753885891587,0.7768,3785.4,3784.4,0.50802426]
[1753885891795,0.7768,3785.4,3785.1,0.132]
[1753885891989,0.9203,3785.3,3784.5,4.091]
[1753885892192,0.9203,3785.3,3784.8,0.133]
[1753885892193,0.4522,3785.2,3784.8,0.133]
[1753885892487,0.9203,3785.2,3784.8,0.15942147]
[1753885892818,0.7768,3785.4,3785.1,0.132]
[1753885892984,0.4522,3785.6,3785.1,2.77388913]
[1753885893384,0.4522,3785.5,3785.1,2.77388913]
[1753885893579,0.4522,3785.5,3785.1,0.132]
[1753885893821,0.832,3785.8,3785.1,0.132]
[1753885893822,0.832,3785.8,3785.2,3.149887]
[1753885894004,0.4522,3785.9,3785.2,3.12346832]
[1753885894205,0.4522,3785.9,3785.7,0.132]
[1753885894834,1.2196,3786.4,3785.8,2.64139813]
[1753885895006,1.2196,3786.4,3785.9,0.132]
[1753885895409,0.4522,3786.3,3785.9,0.132]
[1753885895636,0.4522,3786.3,3785.9,0.15841379]
[1753885895933,0.7674,3786.4,3786.0,2.64131008]
[1753885896131,0.4701,3786.8,3786.2,0.132]
[1753885896132,0.8197,3786.8,3786.2,0.132]
[1753885896335,0.002,3786.8,3786.7,2.64082182]
[1753885896496,0.002,3786.8,3786.7,3.38356626]
[1753885897199,0.002,3786.8,3786.7,0.74274444]
[1753885897616,0.002,3786.8,3786.7,3.86516626]
[1753885898426,0.002,3786.8,3786.7,1.22434444]
[1753885898824,0.4542,3786.8,3786.7,0.132]
[1753885899333,0.9223,3786.8,3786.6,0.132]
[1753885899503,0.4522,3786.7,3786.6,0.132]
[1753885900939,0.002,3786.8,3786.6,0.132]
[1753885901144,0.002,3786.8,3786.7,3.12242182]
[1753885901301,0.002,3786.8,3786.7,3.71195564]
[1753885902209,0.002,3786.8,3786.7,4.98105564]
[1753885902413,0.002,3786.8,3786.7,4.51455564]
[1753885903014,0.002,3786.8,3786.7,8.00746385]
[1753885903202,0.002,3786.8,3786.7,7.98105564]
[1753885903404,0.7556,3786.7,3784.9,0.8194]
[1753885903599,1.6759,3786.6,3784.9,1.301]
[1753885903828,0.9203,3786.5,3784.9,1.301]
[1753885904100,0.9203,3786.4,3785.3,2.64173727]
[1753885904299,0.9203,3786.4,3785.4,2.64171621]
[1753885904506,0.9203,3786.4,3785.5,2.64160347]
[1753885904714,0.9203,3786.4,3785.6,7.35509344]
[1753885904923,0.9203,3786.4,3785.6,4.687142]
[1753885905117,0.4522,3786.4,3785.7,0.02641519]
[1753885905467,0.7556,3786.6,3785.7,0.4816]
[1753885905669,0.7556,3786.6,3785.8,2.64144962]
[1753885905827,0.7556,3786.6,3785.9,3.76592914]
[1753885906023,0.4542,3786.8,3786.1,2.64124032]
[1753885906228,0.4542,3786.8,3786.0,2.64130376]
[1753885906435,0.9223,3786.8,3786.1,2.64124032]
[1753885906926,0.9223,3786.8,3786.2,2.64115509]
[1753885907121,0.9223,3786.8,3786.0,4.106]
[1753885907327,0.9223,3786.8,3786.0,5.05659572]
[1753885907952,0.9223,3786.8,3786.1,2.64124032]